[Event "Maia Cup 2019"]
[Site "Tbilisi"]
[Date "2019.09.06"]
[Round "8.3"]
[White "Fier, Alexandr"]
[Black "Arutinian, David"]
[Result "1-0"]
[ECO "A28"]
[WhiteElo "2549"]
[BlackElo "2551"]
[Annotator "ChessBase"]
[PlyCount "117"]
[EventDate "2019.09.05"]
[EventType "swiss"]
[EventCountry "GEO"]
[SourceTitle "playchess.com"]
[Source "ChessBase"]
[SourceQuality "1"]
[TimeControl "900+10"]

1. c4 {[%emt 0:00:00]} e5 {[%emt 0:00:03]} 2. Nc3 {[%emt 0:00:00]} Nf6 {[%emt 0:00:02]} 3. Nf3 {[%emt 0:00:00]} Nc6 {[%emt 0:00:01]} 4. e4 {[%emt 0:00:00]} d6 {[%emt 0:00:10]} 5. d4 {[%emt 0:00:00]} Bg4 {[%emt 0:00:02]} 6. d5 {[%emt 0:00:00]} Nd4 {[%emt 0:00:02]} 7. Be2 {[%emt 0:00:00]} Bxf3 {[%emt 0:00:10]} 8. Bxf3 {[%emt 0:00:01]} Be7 {[%emt 0:03:01]} 9. Be3 {[%emt 0:00:04]} Nxf3+ {[%emt 0:00:01]} 10. Qxf3 {[%emt 0:00:02]} O-O {[%emt 0:00:02]} 11. O-O {[%emt 0:00:02]} Nd7 {[%emt 0:00:01]} 12. Qg3 {[%emt 0:01:19]} Kh8 {[%emt 0:00:31]} 13. f3 {[%emt 0:00:12]} h6 {[%emt 0:00:04]} 14. Kh1 {[%emt 0:00:02]} Bg5 {[%emt 0:00:19]} 15. Bg1 {[%emt 0:00:01]} Nc5 {[%emt 0:00:35]} 16. Bxc5 {[%emt 0:00:44]} Bh4 {[%emt 0:00:05]} 17. Qh3 {[%emt 0:00:36]} dxc5 {[%emt 0:00:01]} 18. Rad1 {[%emt 0:00:09]} Bg5 {[%emt 0:00:07]} 19. Rd3 {[%emt 0:00:16]} a6 {[%emt 0:00:03]} 20. a4 {[%emt 0:00:48]} Qd6 {[%emt 0:00:05]} 21. b3 {[%emt 0:00:27]} g6 {[%emt 0:00:10]} 22. g3 {[%emt 0:00:12]} Kg7 {[%emt 0:00:03]} 23. Qg2 {[%emt 0:00:17]} h5 {[%emt 0:00:11]} 24. h4 {[%emt 0:00:50]} Bh6 {[%emt 0:00:07]} 25. g4 {[%emt 0:01:18]} Kh7 {[%emt 0:02:56]} 26. gxh5 {[%emt 0:00:37]} gxh5 {[%emt 0:00:01]} 27. Qh3 {[%emt 0:00:01]} Rg8 {[%emt 0:00:44]} 28. Qf5+ {[%emt 0:00:01]} Qg6 {[%emt 0:00:01]} 29. Rg1 {[%emt 0:00:08]} Qxf5 {[%emt 0:00:04]} 30. exf5 {[%emt 0:00:01]} Rxg1+ {[%emt 0:01:21]} 31. Kxg1 {[%emt 0:00:01]} Bf8 {[%emt 0:00:05]} 32. Ne4 {[%emt 0:00:06]} Be7 {[%emt 0:00:00]} 33. f6 {[%emt 0:00:28]} Bd6 {[%emt 0:00:03]} 34. a5 {[%emt 0:00:39]} Rg8+ {[%emt 0:00:37]} 35. Kf2 {[%emt 0:00:01]} Kg6 {[%emt 0:00:01]} 36. b4 {[%emt 0:00:17]} cxb4 {[%emt 0:00:29]} 37. c5 {[%emt 0:00:09]} Bf8 {[%emt 0:00:01]} 38. Rb3 {[%emt 0:02:39]} b6 {[%emt 0:01:55]} 39. axb6 {[%emt 0:00:13]} cxb6 {[%emt 0:00:01]} 40. c6 {[%emt 0:00:01]} Bc5+ {[%emt 0:00:22]} 41. Nxc5 {[%emt 0:02:53]} bxc5 {[%emt 0:00:01]} 42. d6 {[%emt 0:00:01]} Kxf6 {[%emt 0:00:47]} 43. Rd3 {[%emt 0:00:01]} c4 {[%emt 0:02:18]} 44. d7 {[%emt 0:00:08]} cxd3 {[%emt 0:00:18]} 45. c7 {[%emt 0:00:01]} Ke7 {[%emt 0:00:02]} 46. c8=Q {[%emt 0:00:01]} Rd8 {[%emt 0:00:01]} 47. Qc5+ {[%emt 0:01:11]} Ke6 {[%emt 0:00:43]} 48. Qc4+ {[%emt 0:00:07]} Ke7 {[%emt 0:00:01]} 49. Qxd3 {[%emt 0:00:05]} Rxd7 {[%emt 0:00:02]} 50. Qxa6 {[%emt 0:00:11]} Rd4 {[%emt 0:00:11]} 51. Kg3 {[%emt 0:00:16]} Rf4 {[%emt 0:00:42]} 52. Qh6 {[%emt 0:00:20]} Rf5 {[%emt 0:00:02]} 53. Qb6 {[%emt 0:00:26]} Kf8 {[%emt 0:01:28]} 54. Qxb4+ {[%emt 0:01:10]} Kg7 {[%emt 0:00:02]} 55. Qd6 {[%emt 0:00:03]} Kh7 {[%emt 0:00:07]} 56. Kf2 {[%emt 0:00:54]} Kg7 {[%emt 0:00:22]} 57. Ke3 {[%emt 0:00:03]} Kg8 {[%emt 0:00:43]} 58. Qh6 {[%emt 0:00:33]} Rf4 {[%emt 0:00:47]} 59. Qg5+ {[%emt 0:00:01]} 1-0

[Event "Maia Cup 2019"]
[Site "Tbilisi"]
[Date "2019.09.06"]
[Round "8.4"]
[White "Mikadze, Miranda"]
[Black "Volkov, Nika"]
[Result "0-1"]
[ECO "C00"]
[WhiteElo "2279"]
[BlackElo "2066"]
[Annotator "NA"]
[PlyCount "100"]
[EventDate "2019.09.05"]
[EventType "swiss"]
[EventCountry "GEO"]
[SourceTitle "playchess.com"]
[Source "ChessBase"]
[SourceQuality "1"]
[TimeControl "900+10"]

1. e4 {[%emt 0:00:00]} e6 {[%emt 0:00:00]} 2. d4 {[%emt 0:00:00]} d5 {[%emt 0:00:00]} 3. Bd3 {[%emt 0:00:00]} c5 {[%emt 0:00:00]} 4. exd5 {[%emt 0:00:06]} exd5 {[%emt 0:00:00]} 5. dxc5 {[%emt 0:00:06]} Bxc5 {[%emt 0:00:06]} 6. Nf3 {[%emt 0:00:02]} Nf6 {[%emt 0:00:03]} 7. O-O {[%emt 0:00:02]} O-O {[%emt 0:00:03]} 8. Bg5 {[%emt 0:00:01]} Nc6 {[%emt 0:00:06]} 9. Nbd2 {[%emt 0:00:05]} Bg4 {[%emt 0:00:18]} 10. c3 {[%emt 0:00:13]} Re8 {[%emt 0:00:22]} 11. Qc2 {[%emt 0:00:39]} h6 {[%emt 0:00:25]} 12. Bh4 {[%emt 0:00:04]} Qd6 {[%emt 0:00:44]} 13. Bg3 {[%emt 0:00:32]} Qd7 {[%emt 0:00:13]} 14. h3 {[%emt 0:00:44]} Be6 {[%emt 0:00:03]} 15. Rfe1 {[%emt 0:00:45]} Rac8 {[%emt 0:00:10]} 16. Qd1 {[%emt 0:00:48]} a6 {[%emt 0:00:07]} 17. Nb3 {[%emt 0:00:35]} Bb6 {[%emt 0:00:24]} 18. Ne5 {[%emt 0:00:09]} Nxe5 {[%emt 0:00:20]} 19. Bxe5 {[%emt 0:00:01]} Ne4 {[%emt 0:00:55]} 20. Bd4 {[%emt 0:00:40]} Bc7 {[%emt 0:01:05]} 21. f3 {[%emt 0:03:48]} Nf6 {[%emt 0:02:43]} 22. Qd2 {[%emt 0:01:50]} Nh5 {[%emt 0:00:27]} 23. Be5 {[%emt 0:00:22]} Bxh3 24. Bxc7 Qxc7 {[%emt 0:02:40]} 25. Rxe8+ {[%emt 0:01:50]} Rxe8 {[%emt 0:00:02]} 26. Re1 {[%emt 0:00:01]} Rxe1+ {[%emt 0:01:31]} 27. Qxe1 {[%emt 0:00:02]} Be6 {[%emt 0:00:01]} 28. Nd4 {[%emt 0:00:05]} Nf4 {[%emt 0:00:51]} 29. Bf1 {[%emt 0:00:47]} Qd6 {[%emt 0:00:23]} 30. Qe3 {[%emt 0:00:54]} Ng6 {[%emt 0:00:12]} 31. Ne2 {[%emt 0:00:12]} h5 {[%emt 0:01:00]} 32. Qa7 {[%emt 0:00:20]} Qe5 {[%emt 0:00:22]} 33. Kf2 {[%emt 0:00:36]} Qc7 {[%emt 0:00:21]} 34. Nd4 {[%emt 0:00:03]} h4 {[%emt 0:00:06]} 35. Nxe6 {[%emt 0:00:33]} fxe6 {[%emt 0:00:03]} 36. Qa8+ {[%emt 0:00:03]} Kf7 {[%emt 0:00:03]} 37. Bd3 {[%emt 0:00:09]} Qg3+ {[%emt 0:00:06]} 38. Kf1 {[%emt 0:00:05]} Nf4 {[%emt 0:00:07]} 39. Qxb7+ {[%emt 0:00:04]} Kf6 {[%emt 0:00:01]} 40. Bxa6 {[%emt 0:00:31]} Qxg2+ {[%emt 0:00:17]} 41. Ke1 {[%emt 0:00:00]} Qg1+ {[%emt 0:00:06]} 42. Kd2 {[%emt 0:00:04]} Qf2+ {[%emt 0:00:02]} 43. Kc1 {[%emt 0:00:18]} h3 {[%emt 0:00:55]} 44. Qb8 {[%emt 0:00:01]} Qe3+ {[%emt 0:00:02]} 45. Kc2 {[%emt 0:00:06]} Qxf3 {[%emt 0:01:27]} 46. Bb5 {[%emt 0:00:26]} h2 {[%emt 0:01:08]} 47. Qf8+ {[%emt 0:00:31]} Kg6 {[%emt 0:00:56]} 48. Qe8+ {[%emt 0:00:41]} Kh7 {[%emt 0:00:18]} 49. Kb3 {[%emt 0:00:38]} h1=Q {[%emt 0:00:07]} 50. a4 {[%emt 0:00:01]} Qb1 {[%emt 0:00:34]} 0-1

[Event "Maia Cup 2019"]
[Site "Tbilisi"]
[Date "2019.09.06"]
[Round "8.7"]
[White "Paichadze, Luka"]
[Black "Chkhaidze, Nikoloz"]
[Result "1-0"]
[ECO "C29"]
[WhiteElo "2574"]
[BlackElo "2333"]
[Annotator "ChessBase"]
[PlyCount "73"]
[EventDate "2019.09.05"]
[EventType "swiss"]
[EventCountry "GEO"]
[SourceTitle "playchess.com"]
[Source "ChessBase"]
[SourceQuality "1"]
[TimeControl "900+10"]

1. e4 e5 2. Nc3 Nf6 3. f4 d5 4. fxe5 Nxe4 5. Nf3 Bc5 6. Qe2 Bf5 7. d3 Nxc3 8. bxc3 O-O 9. Be3 Nd7 10. d4 Bb6 11. c4 c5 12. cxd5 cxd4 13. Bxd4 Re8 14. c3 Bg4 15. O-O-O Nxe5 16. Bxe5 f6 17. Qc4 Bxf3 18. d6+ Kh8 19. gxf3 Rxe5 20. d7 Rc5 21. Qb3 Qc7 22. Qf7 Rxc3+ 23. Kb1 Rg8 24. Bh3 Qc6 25. Be6 Qb5+ 26. Bb3 Rd8 27. Rhe1 Re3 28. Rxe3 Bxe3 29. a4 Qf5+ 30. Bc2 Qe5 31. Rd5 Qb8 32. Rh5 h6 33. Qg6 Kg8 34. Qh7+ Kf8 35. Bb3 Qf4 36. Qg8+ Ke7 37. Qe6+ 1-0

[Event "Maia Cup 2019"]
[Site "Tbilisi"]
[Date "2019.09.06"]
[Round "9.4"]
[White "Volkov, Nika"]
[Black "Arabidze, Meri"]
[Result "1-0"]
[ECO "A85"]
[WhiteElo "2066"]
[BlackElo "2398"]
[Annotator "ChessBase"]
[PlyCount "137"]
[EventDate "2019.09.05"]
[EventType "swiss"]
[EventCountry "GEO"]
[SourceTitle "playchess.com"]
[Source "ChessBase"]
[SourceQuality "1"]
[TimeControl "900+10"]

1. d4 {[%emt 0:00:00]} f5 {[%emt 0:00:00]} 2. c4 {[%emt 0:00:00]} Nf6 {[%emt 0:00:00]} 3. Nc3 {[%emt 0:00:00]} e6 {[%emt 0:00:00]} 4. Nf3 {[%emt 0:00:01]} Bb4 {[%emt 0:00:39]} 5. Qb3 {[%emt 0:00:02]} a5 {[%emt 0:00:11]} 6. e3 {[%emt 0:00:07]} b6 {[%emt 0:00:19]} 7. Bd3 {[%emt 0:00:04]} Bb7 {[%emt 0:00:10]} 8. O-O {[%emt 0:00:05]} Bxc3 {[%emt 0:00:22]} 9. Qxc3 {[%emt 0:00:02]} Ne4 {[%emt 0:01:05]} 10. Qc2 {[%emt 0:00:03]} O-O {[%emt 0:00:10]} 11. Nd2 {[%emt 0:00:04]} Qh4 {[%emt 0:01:24]} 12. f3 {[%emt 0:00:44]} Nf6 {[%emt 0:00:12]} 13. e4 {[%emt 0:03:00]} Nc6 {[%emt 0:00:26]} 14. Qc3 {[%emt 0:00:02]} fxe4 {[%emt 0:02:09]} 15. Nxe4 {[%emt 0:00:05]} Nb4 {[%emt 0:00:17]} 16. Nxf6+ {[%emt 0:02:08]} Qxf6 {[%emt 0:00:40]} 17. Bb1 {[%emt 0:00:07]} d5 {[%emt 0:03:36]} 18. c5 {[%emt 0:01:31]} bxc5 {[%emt 0:00:56]} 19. Qxc5 {[%emt 0:00:02]} Ba6 {[%emt 0:02:17]} 20. Rd1 {[%emt 0:00:04]} Be2 {[%emt 0:01:20]} 21. Rd2 {[%emt 0:00:01]} Na6 {[%emt 0:00:46]} 22. Qc3 {[%emt 0:00:18]} Bb5 {[%emt 0:00:29]} 23. a4 {[%emt 0:00:06]} Be8 {[%emt 0:00:09]} 24. Qxa5 {[%emt 0:00:05]} Bh5 {[%emt 0:00:18]} 25. Qc3 {[%emt 0:00:05]} c5 {[%emt 0:00:14]} 26. Qe3 {[%emt 0:00:32]} Rfc8 {[%emt 0:00:13]} 27. dxc5 {[%emt 0:00:38]} Nxc5 {[%emt 0:00:02]} 28. Bc2 {[%emt 0:01:24]} Bf7 {[%emt 0:00:39]} 29. f4 {[%emt 0:00:48]} Bg6 {[%emt 0:00:14]} 30. Bd1 {[%emt 0:03:11]} Be4 {[%emt 0:00:00]} 31. Rd4 {[%emt 0:00:46]} e5 {[%emt 0:00:13]} 32. fxe5 {[%emt 0:00:09]} Qxe5 {[%emt 0:00:01]} 33. Bd2 {[%emt 0:00:15]} Ne6 {[%emt 0:00:11]} 34. Rb4 {[%emt 0:00:37]} d4 {[%emt 0:00:01]} 35. Qe2 {[%emt 0:00:01]} Nc5 {[%emt 0:00:32]} 36. Rb5 {[%emt 0:00:13]} Kh8 {[%emt 0:00:32]} 37. Bb4 {[%emt 0:00:30]} d3 {[%emt 0:00:10]} 38. Qf2 {[%emt 0:00:06]} Rf8 {[%emt 0:00:09]} 39. Rxc5 {[%emt 0:00:09]} Rxf2 {[%emt 0:00:06]} 40. Rxe5 {[%emt 0:00:22]} Rxg2+ {[%emt 0:00:02]} 41. Kf1 {[%emt 0:00:01]} Bb7 {[%emt 0:00:19]} 42. Rf5 {[%emt 0:01:02]} Rxb2 {[%emt 0:00:11]} 43. Bc3 {[%emt 0:01:18]} Rxh2 {[%emt 0:00:07]} 44. Bf3 {[%emt 0:00:21]} Bxf3 {[%emt 0:00:13]} 45. Rxf3 {[%emt 0:00:01]} Rh1+ {[%emt 0:00:10]} 46. Kf2 {[%emt 0:00:03]} Rxa1 {[%emt 0:00:12]} 47. Bxa1 {[%emt 0:00:01]} h5 {[%emt 0:00:12]} 48. Rf4 {[%emt 0:00:02]} Kh7 {[%emt 0:00:09]} 49. Ke3 {[%emt 0:00:07]} g5 {[%emt 0:00:04]} 50. Rd4 {[%emt 0:00:02]} Kg6 {[%emt 0:00:08]} 51. Kxd3 {[%emt 0:00:07]} g4 {[%emt 0:00:03]} 52. Bc3 {[%emt 0:00:03]} Kf5 {[%emt 0:00:24]} 53. Bd2 {[%emt 0:00:10]} g3 {[%emt 0:00:07]} 54. Ke3 {[%emt 0:00:02]} Rh8 {[%emt 0:00:15]} 55. Rf4+ {[%emt 0:01:42]} Ke6 {[%emt 0:00:06]} 56. Kf3 {[%emt 0:00:28]} h4 {[%emt 0:00:05]} 57. Bc3 {[%emt 0:00:03]} Rh7 {[%emt 0:00:07]} 58. Re4+ {[%emt 0:00:03]} Kd5 {[%emt 0:00:10]} 59. Re1 {[%emt 0:00:01]} Kc4 {[%emt 0:00:08]} 60. Bd2 {[%emt 0:00:09]} Rf7+ {[%emt 0:00:13]} 61. Bf4 {[%emt 0:00:22]} Kb4 {[%emt 0:00:09]} 62. Re4+ {[%emt 0:00:01]} Ka5 {[%emt 0:00:13]} 63. Kg2 {[%emt 0:00:02]} Rd7 {[%emt 0:00:11]} 64. Kh3 {[%emt 0:00:05]} Rd3 {[%emt 0:00:18]} 65. Bc7+ {[%emt 0:00:19]} Ka6 {[%emt 0:00:01]} 66. Rxh4 {[%emt 0:00:02]} Rc3 {[%emt 0:00:11]} 67. Bxg3 {[%emt 0:00:06]} Ka5 {[%emt 0:00:09]} 68. Kg2 {[%emt 0:00:02]} Rc2+ {[%emt 0:00:06]} 69. Kf1 1-0